fUST/lending_fUST_20250804
["ID","MTS","AMOUNT","RATE_DAILY","PERIOD"]
[377135092,1754259032578,-2974.9904936,0.000364,2]
[377135094,1754259032588,-1912.3081558,0.00036439,2]
[377135096,1754259032598,-151.0,0.000365,120]
[377135098,1754259032608,-348.9007,0.00036568,2]
[377135100,1754259032617,-314.27957013,0.00036568,35]
[377135102,1754259032638,-338.91554705,0.00036568,35]
[377135218,1754259038656,-490.21663662,0.00036568,35]
[377135220,1754259038666,-300.0,0.00036615,3]
[377135222,1754259038676,-283.0,0.00036615,2]
[377135224,1754259038688,-508.15330908,0.00036616,2]
[377135226,1754259038700,-460.0,0.00036616,2]
[377135400,1754259040597,-1180.9,0.00036616,2]
[377135731,1754259043903,-1759.08874243,0.00036616,2]
[377136001,1754259046733,-1522.2023979,0.00036616,2]
[377136009,1754259046791,-2039.1,0.00036616,2]
[377136828,1754259368158,446.3,0.00030137,120]
[377136829,1754259454695,5000.0,0.0003,2]
[377136831,1754259559553,5000.0,0.0003,2]
[377136832,1754259614825,157.0,0.00024,120]
[377136833,1754259904192,175.857258,0.00025778,2]
[377136926,1754260018152,-184.07385719,0.000314,2]
[377136961,1754260183163,64730.0,0.00025,5]
[377136970,1754260227158,153.0,0.00024,120]
[377136991,1754260232733,-315.7812952,0.00030567,2]
[377136992,1754260232745,-153.0,0.000308,120]
[377136994,1754260232755,-203.28126122,0.00031116,2]
[377136995,1754260232765,-300.0,0.00031216,2]
[377136997,1754260232774,-136.28271302,0.00031216,3]
[377136998,1754260232791,-163.71728698,0.00031216,3]
[377136999,1754260232801,-262.46271302,0.00031216,3]
[377137000,1754260232840,-937.53728698,0.00031216,3]
[377137001,1754260232850,-300.0,0.00031216,3]
[377137002,1754260232860,-10000.0,0.00031217,2]
[377137003,1754260232870,-0.19232626,0.000314,2]
[377137004,1754260232879,-361.6029063,0.00031511,2]
[377137005,1754260232889,-169.058825,0.00031562,2]
[377137006,1754260232899,-1600.0,0.00031575,3]
[377137007,1754260232908,-6804.3205338,0.00031576,2]
[377137008,1754260232918,-2383.54825029,0.00031765,2]
[377137009,1754260232928,-5821.4404879,0.00031765,2]
[377137010,1754260232937,-3070.38285694,0.00031765,2]
[377137011,1754260232947,-1697.36449253,0.000318,2]
[377137012,1754260232957,-469.11002806,0.000319,25]
[377137013,1754260232966,-469.11002802,0.00032797,27]
[377137014,1754260232976,-500.0,0.00033377,7]
[377137015,1754260232986,-177.26217106,0.00033377,7]
[377137016,1754260232995,-176.75141025,0.00033377,7]
[377137017,1754260233005,-1704.04419895,0.00033378,2]
[377137018,1754260233016,-8240.26809115,0.00033378,2]
[377137019,1754260233031,-2729.33265618,0.00033378,2]
[377137038,1754260239048,-12216.35505372,0.00033378,2]
[377137039,1754260239058,-500.0,0.000334,5]
[377137040,1754260239068,-660.02974426,0.00033617,2]
[377137041,1754260239078,-469.11002802,0.00033693,29]
[377137042,1754260239088,-199.8962906,0.00033725,2]
[377137043,1754260239097,-1000.0,0.00033948,5]
[377137044,1754260239110,-668.0,0.00033976,3]
[377137045,1754260239119,-200.0,0.00034337,15]
[377137046,1754260239129,-200.0,0.00034337,15]
[377137047,1754260239138,-200.0,0.00034337,15]
[377137048,1754260239148,-469.11002802,0.0003459,31]
[377137049,1754260239158,-1697.3644925,0.00035457,2]
[377137050,1754260239169,-469.11002802,0.00035486,32]
[377137051,1754260239179,-3152.0961569,0.000358,2]
[377137052,1754260239189,-469.11002802,0.00036383,34]
[377137053,1754260239199,-160.0,0.00036545,2]
[377137054,1754260239208,-845.333042,0.00036555,2]
[377137055,1754260239219,-469.11002802,0.00037279,36]
[377137056,1754260239228,-200.0,0.000376,15]
[377137057,1754260239239,-200.0,0.000376,15]
[377137058,1754260239249,-200.0,0.000376,15]
[377137059,1754260239260,-240.0,0.000376,15]
[377137060,1754260239271,-153.0,0.000376,120]
[377137061,1754260239281,-469.11002802,0.00038176,38]
[377137062,1754260239292,-153.0,0.00038466,30]
[377137063,1754260239301,-153.0,0.00038466,30]
[377137064,1754260239312,-469.11002802,0.00039072,40]
[377137065,1754260239322,-621.16834557,0.00039114,2]
[377137071,1754260242122,161.416809,0.00013699,2]
[377137083,1754260244035,-1076.19614693,0.00039114,2]
[377137084,1754260244045,-150.0,0.000395,2]
[377137085,1754260244055,-151.0,0.0003993,14]
[377137086,1754260244064,-151.0,0.0003993,14]
[377137087,1754260244074,-4371.56162368,0.0003993,2]
[377137088,1754260244085,-469.11002802,0.00039969,41]
[377137090,1754260244094,-469.11002802,0.00040866,43]
[377137092,1754260244105,-200.0,0.00041174,30]
[377137094,1754260244117,-200.0,0.00041174,30]
[377137096,1754260244126,-200.0,0.00041174,30]
[377137099,1754260244135,-200.0,0.00041174,30]
[377137101,1754260244145,-375.0,0.00041174,30]
[377137102,1754260244156,-469.11002802,0.00041762,45]
[377137103,1754260244165,-469.11002802,0.00042659,47]
[377137104,1754260244175,-1697.3644925,0.00042771,28]
[377137105,1754260244188,-469.11002802,0.00043555,48]
[377137106,1754260244197,-407.0,0.00043598,2]
[377137107,1754260244206,-151.0,0.00043616,120]
[377137108,1754260244215,-295.521855,0.00043616,120]
[377137109,1754260244224,-151.0,0.00043616,120]
[377137110,1754260244234,-151.0,0.00043984,120]
[377137111,1754260244245,-151.0,0.00043984,120]
[377137112,1754260244256,-151.0,0.00043984,120]
[377137113,1754260244267,-151.0,0.00043984,120]
[377137114,1754260244277,-469.11002802,0.00044452,50]
[377137115,1754260244287,-153.0,0.000445,120]
[377137116,1754260244296,-161.416809,0.00044521,2]
[377137117,1754260244306,-200.0,0.00045086,30]
[377137118,1754260244315,-200.0,0.00045086,30]
[377137119,1754260244325,-200.0,0.00045086,30]
[377137120,1754260244335,-200.0,0.00045086,30]
[377137121,1754260244344,-200.0,0.00045086,30]
[377137122,1754260244354,-200.0,0.00045086,30]
[377137123,1754260244363,-200.0,0.00045086,30]
[377137124,1754260244373,-246.0,0.00045086,30]
[377137125,1754260244383,-469.11002802,0.00045348,52]
[377137126,1754260244392,-469.11002802,0.00046245,54]
[377137127,1754260244402,-1697.3644925,0.00046429,28]
[377137128,1754260244412,-407.0,0.00046598,2]
[377137129,1754260244423,-656.5755565,0.00047001,120]
[377137130,1754260244433,-469.11002802,0.00047141,55]
[377137131,1754260244444,-230.56,0.00048,7]
[377137132,1754260244454,-469.11002802,0.00048038,57]
[377137133,1754260244463,-151.0,0.00048038,120]
[377137134,1754260244474,-151.0,0.00048452,120]
[377137135,1754260244484,-469.11002802,0.00048934,59]
[377137136,1754260244495,-206.0,0.0004919,30]
[377137137,1754260244505,-151.0,0.0004919,120]
[377137138,1754260244515,-155.0,0.00049278,120]
[377137139,1754260244525,-200.0,0.00049371,60]
[377137140,1754260244535,-200.0,0.00049371,60]
[377137141,1754260244546,-200.0,0.00049371,60]
[377137142,1754260244558,-200.0,0.00049371,60]
[377137143,1754260244569,-200.0,0.00049371,60]
[377137144,1754260244579,-200.0,0.00049371,60]
[377137145,1754260244588,-200.0,0.00049371,60]
[377137146,1754260244598,-200.0,0.00049371,60]
[377137147,1754260244608,-200.0,0.00049371,60]
[377137148,1754260244620,-200.0,0.00049371,60]
[377137149,1754260244631,-304.0,0.00049371,60]
[377137150,1754260244640,-876.96469273,0.000495,120]
[377137157,1754260246885,-1123.03530727,0.000495,120]
[377137158,1754260246895,-41.30905155,0.00049589,2]
[377137159,1754260246907,-165.97936552,0.00049589,2]
[377137160,1754260246917,-407.0,0.00049598,2]
[377137161,1754260246927,-150.31,0.00049679,30]
[377137162,1754260246938,-751.58,0.00049679,30]
[377137163,1754260246947,-407.84063448,0.00049679,4]
[377137164,1754260246958,-4832.1878548,0.00049679,4]
[377137165,1754260246970,-19362.55450542,0.00049679,4]
[377137166,1754260246980,-12202.62,0.00049688,120]
[377137167,1754260246989,-151.0,0.00049689,120]
[377137168,1754260246998,-151.0,0.00049689,120]
[377137169,1754260247008,-151.0,0.00049689,120]
[377137170,1754260247019,-151.0,0.00049689,120]
[377137171,1754260247029,-151.0,0.00049689,120]
[377137172,1754260247038,-151.0,0.00049689,120]
[377137173,1754260247048,-151.0,0.00049689,120]
[377137174,1754260247057,-151.0,0.00049689,120]
[377137175,1754260247067,-151.0,0.00049689,120]
[377137176,1754260247078,-151.0,0.00049689,120]
[377137177,1754260247087,-24602.5829947,0.00049689,4]
[377137178,1754260247097,-151.0,0.0004969,120]
[377137179,1754260247107,-151.0,0.0004969,120]
[377137180,1754260247118,-172.18488,0.0004969,120]
[377137181,1754260247130,-151.0,0.0004969,120]
[377137182,1754260247140,-151.0,0.0004969,120]
[377137183,1754260247238,-151.0,0.0004969,120]
[377137184,1754260247249,-151.0,0.0004969,120]
[377137185,1754260247258,-151.0,0.0004969,120]
[377137186,1754260247268,-151.0,0.0004969,120]
[377137187,1754260247277,-151.0,0.0004969,120]
[377137188,1754260247288,-335.84447868,0.00049698,120]
[377137189,1754260247299,-151.0,0.00049699,120]
[377137190,1754260247309,-151.0,0.00049699,120]
[377137191,1754260247318,-151.0,0.00049699,120]
[377137192,1754260247328,-151.0,0.00049699,120]
[377137193,1754260247338,-151.0,0.00049699,120]
[377137194,1754260247347,-151.0,0.00049699,120]
[377137195,1754260247358,-151.0,0.00049699,120]
[377137196,1754260247367,-36721.58598179,0.00049699,2]
[377137197,1754260247379,-469.11002802,0.00049831,61]
[377137198,1754260247389,-1000.0,0.0005,120]
[377137199,1754260247400,-1697.3644925,0.00050086,28]
[377137200,1754260247411,-3286.81802725,0.00050373,120]
[377137201,1754260247424,-8915.80197275,0.00050373,120]
[377137202,1754260247435,-151.0,0.00050374,120]
[377137203,1754260247444,-151.0,0.00050374,120]
[377137204,1754260247454,-151.0,0.00050468,120]
[377137205,1754260247465,-151.0,0.00050468,120]
[377137206,1754260247475,-151.0,0.00050468,120]
[377137207,1754260247484,-151.0,0.00050468,120]
[377137208,1754260247493,-1000.0,0.000505,120]
[377137209,1754260247503,-1008.38621479,0.000505,120]
[377137210,1754260247580,-3301.66996121,0.000505,120]
[377137211,1754260247590,-207.28841706,0.00050502,2]
[377137212,1754260247600,-151.0,0.0005058,120]
[377137213,1754260247610,-151.0,0.0005058,120]
[377137214,1754260247619,-206.0,0.0005059,30]
[377137215,1754260247629,-469.11002802,0.00050728,62]
[377137216,1754260247639,-1000.0,0.00051,120]
[377137217,1754260247648,-1947.85132537,0.00051,120]
[377137218,1754260247668,-151.0,0.0003993,14]
[377137219,1754260247678,-688.95942076,0.00051,120]
[377137232,1754260300517,550.0,0.000273,120]
[377137236,1754260349502,3517.85187604,0.0003,2]
[377137246,1754260365065,188.14051072,0.00029262,2]
[377137247,1754260365410,1482.14812396,0.0003,2]
[377137248,1754260367082,267.8851247,0.00029262,2]
[377137284,1754260524232,176.0,0.00021945,6]
[377137286,1754260544994,188.14051071,0.00029276,2]
[377137314,1754261076070,170.5,0.00030137,120]
[377137321,1754261174170,152.0,0.00024,120]
[377137323,1754261199134,-183.58058476,0.00031496,2]
[377137325,1754261254948,-30.63605801,0.00031496,2]
[377137326,1754261254978,-152.0,0.000323,120]
[377137327,1754261259517,161.976377,0.00013699,2]
[377137329,1754261261870,-208.10849459,0.00037713,2]
[377137330,1754261261897,-184.92023341,0.00037713,2]
[377137331,1754261261925,-183.61717909,0.00037808,7]
[377137332,1754261261955,-300.0,0.00037812,2]
[377137333,1754261261987,-1200.0,0.00037813,3]
[377137334,1754261262024,-1200.0,0.00037813,3]
[377137335,1754261262052,-244.0,0.00037814,3]
[377137336,1754261262079,-300.0,0.00037814,3]
[377137337,1754261262109,-300.0,0.00037814,3]
[377137338,1754261262138,-293.0,0.00037814,3]
[377137339,1754261262241,-300.0,0.00037814,3]
[377137340,1754261262268,-4684.8454769,0.00037815,2]
[377137341,1754261262299,-1623.13938078,0.000379,37]
[377137342,1754261262325,-184.92023339,0.00038352,2]
[377137343,1754261262357,-1623.13938074,0.00038486,38]
[377137344,1754261262382,-184.92023339,0.00038991,2]
[377137345,1754261262411,-1623.13938074,0.00039072,40]
[377137346,1754261262436,-150.0,0.000395,2]
[377137347,1754261262462,-184.92023339,0.0003963,2]
[377137348,1754261262496,-1623.13938074,0.00039659,41]
[377137349,1754261262522,-202.69975959,0.0003973,2]
[377137351,1754261277874,-1623.13938074,0.00040245,42]
[377137352,1754261277900,-152.0,0.000407,120]
[377137353,1754261277930,-1623.13938074,0.00040831,43]
[377137354,1754261277960,-1623.13938074,0.00041417,44]
[377137355,1754261277989,-200.0,0.00041595,30]
[377137356,1754261278019,-200.0,0.00041595,30]
[377137357,1754261278047,-200.0,0.00041595,30]
[377137358,1754261278176,-200.0,0.00041595,30]
[377137359,1754261278210,-1623.13938074,0.00042003,45]
[377137360,1754261278236,-500.0,0.00042473,10]
[377137361,1754261278262,-500.0,0.0004248,31]
[377137362,1754261278287,-500.0,0.0004248,31]
[377137363,1754261278312,-500.0,0.0004248,31]
[377137364,1754261278336,-293.00773405,0.0004248,31]
[377137365,1754261278364,-500.0,0.0004248,2]
[377137366,1754261278391,-500.0,0.0004248,2]
[377137367,1754261278417,-500.0,0.0004248,31]
[377137368,1754261278442,-500.0,0.0004248,31]
[377137369,1754261278466,-500.0,0.0004248,2]
[377137370,1754261278494,-500.0,0.0004248,31]
[377137371,1754261278518,-500.0,0.0004248,31]
[377137372,1754261278544,-500.0,0.0004248,2]
[377137373,1754261278569,-500.0,0.0004248,2]
[377137374,1754261278598,-500.0,0.0004248,2]
[377137375,1754261278625,-500.0,0.0004248,31]
[377137376,1754261278653,-500.0,0.0004248,2]
[377137377,1754261278683,-500.0,0.0004248,2]
[377137378,1754261278711,-500.0,0.0004248,31]
[377137379,1754261278738,-306.17661597,0.0004248,31]
[377137380,1754261278766,-500.0,0.0004248,2]
[377137381,1754261278794,-500.0,0.0004248,2]
[377137382,1754261278820,-500.0,0.0004248,31]
[377137383,1754261278847,-500.0,0.0004248,2]
[377137384,1754261278875,-500.0,0.0004248,2]
[377137385,1754261278901,-500.0,0.0004248,31]
[377137386,1754261278926,-500.0,0.0004248,2]
[377137387,1754261278954,-500.0,0.0004248,31]
[377137388,1754261278982,-500.0,0.0004248,2]
[377137389,1754261279011,-500.0,0.0004248,31]
[377137390,1754261279039,-300.87801868,0.0004248,2]
[377137391,1754261279067,-500.0,0.0004248,31]
[377137392,1754261279097,-500.0,0.0004248,2]
[377137393,1754261279127,-500.0,0.0004248,31]
[377137394,1754261279157,-500.0,0.0004248,2]
[377137395,1754261279186,-500.0,0.0004248,31]
[377137396,1754261279213,-500.0,0.0004248,31]
[377137397,1754261279243,-500.0,0.0004248,2]
[377137398,1754261279269,-500.0,0.0004248,2]
[377137399,1754261279299,-500.0,0.0004248,2]
[377137400,1754261279326,-500.0,0.0004248,31]
[377137401,1754261279352,-500.0,0.0004248,2]
[377137402,1754261279381,-436.24249101,0.0004248,2]
[377137403,1754261279408,-500.0,0.0004248,31]
[377137404,1754261279434,-500.0,0.0004248,2]
[377137405,1754261279540,-621.60736341,0.0004248,31]
[377137406,1754261279575,-500.0,0.0004248,2]
[377137407,1754261279602,-500.0,0.0004248,31]
[377137408,1754261279628,-500.0,0.0004248,2]
[377137409,1754261279655,-500.0,0.0004248,31]
[377137410,1754261279680,-500.0,0.0004248,2]
[377137411,1754261279706,-500.0,0.0004248,31]
[377137412,1754261279734,-500.0,0.0004248,2]
[377137413,1754261279761,-500.0,0.0004248,31]
[377137414,1754261279788,-500.0,0.0004248,31]
[377137415,1754261279814,-500.0,0.0004248,2]
[377137416,1754261279839,-500.0,0.0004248,31]
[377137417,1754261279865,-500.0,0.0004248,31]
[377137418,1754261279891,-500.0,0.0004248,31]
[377137419,1754261279916,-500.0,0.0004248,31]
[377137420,1754261279941,-500.0,0.0004248,31]
[377137421,1754261279966,-500.0,0.0004248,31]
[377137422,1754261279992,-500.0,0.0004248,31]
[377137423,1754261280018,-500.0,0.0004248,2]
[377137424,1754261280048,-705.43574187,0.0004248,2]
[377137425,1754261280076,-10392.09451205,0.00042481,2]
[377137426,1754261284118,-14507.90548795,0.00042481,2]
[377137427,1754261284151,-1623.13938074,0.0004259,46]
[377137428,1754261284178,-985.28749078,0.00042637,2]
[377137429,1754261284203,-599.16935,0.00042674,2]
[377137430,1754261284229,-500.0,0.00043021,10]
[377137431,1754261284261,-1623.13938074,0.00043176,48]
[377137432,1754261284287,-500.0,0.000432,10]
[377137433,1754261284311,-500.0,0.000432,10]
[377137434,1754261284337,-500.0,0.000432,10]
[377137435,1754261284368,-1623.13938074,0.00043762,49]
[377137436,1754261284393,-183.079199,0.00043858,2]
[377137437,1754261284419,-165.701387,0.00044109,2]
[377137438,1754261284444,-165.701387,0.00044256,2]
[377137439,1754261284475,-1623.13938074,0.00044348,50]
[377137440,1754261284501,-165.701387,0.00044403,2]
[377137441,1754261284527,-165.701387,0.0004455,2]
[377137442,1754261284557,-1623.13938074,0.00044934,51]
[377137443,1754261284673,-407.0,0.00045311,2]
[377137444,1754261284704,-430.99,0.000454,14]
[377137445,1754261284738,-200.0,0.00045486,60]
[377137446,1754261284770,-200.0,0.00045486,60]
[377137447,1754261284802,-200.0,0.00045486,60]
[377137448,1754261284832,-200.0,0.00045486,60]
[377137449,1754261284861,-320.0,0.00045486,60]
[377137450,1754261284893,-1623.13938074,0.00045521,52]
[377137451,1754261284922,-1623.13938074,0.00046107,53]
[377137452,1754261284950,-231.3,0.0004614,120]
[377137453,1754261284976,-521.0,0.00046602,120]
[377137454,1754261285000,-151.0,0.00046623,120]
[377137455,1754261285025,-151.0,0.00046623,120]
[377137456,1754261285055,-1623.13938074,0.00046693,54]
[377137457,1754261285080,-198.0,0.00046897,120]
[377137458,1754261285105,-521.0,0.00047063,120]
[377137459,1754261285137,-1623.13938074,0.00047279,56]
[377137460,1754261285164,-521.0,0.00047525,120]
[377137461,1754261285194,-1623.13938074,0.00047866,57]
[377137462,1754261285220,-150.0,0.00047986,2]
[377137463,1754261285246,-521.0,0.00047986,120]
[377137464,1754261285274,-407.0,0.00048311,2]
[377137465,1754261285300,-521.0,0.00048448,120]
[377137466,1754261285330,-1623.13938074,0.00048452,58]
[377137467,1754261285356,-413.83417775,0.00048481,120]
[377137468,1754261285381,-237.99,0.000486,7]
[377137469,1754261285405,-151.0,0.00048693,120]
[377137470,1754261285430,-151.0,0.00048693,120]
[377137471,1754261285455,-151.0,0.00048693,120]
[377137472,1754261285480,-430.99,0.000488,14]
[377137473,1754261285507,-521.0,0.0004891,120]
[377137474,1754261285532,-151.0,0.00048967,120]
[377137475,1754261285556,-245.0,0.00048967,120]
[377137476,1754261285582,-152.0,0.00049,120]
[377137477,1754261285612,-1623.13938074,0.00049038,59]
[377137478,1754261285638,-245.0,0.00049241,120]
[377137479,1754261285664,-521.0,0.00049371,120]
[377137480,1754261285691,-2361.97617764,0.000495,120]
[377137516,1754261431983,-1297.26546842,0.000449,51]
[377137518,1754261431994,-413.83417775,0.00045,120]
[377137519,1754261432004,-1297.26546833,0.00045245,52]
[377137521,1754261432015,-582.38102762,0.0004559,52]
[377137524,1754261432105,-371.4231319,0.0004559,52]
[377137525,1754261432117,-343.46130881,0.0004559,52]
[377137526,1754261432127,-150.0,0.00045766,2]
[377137527,1754261432137,-1297.26546833,0.00045934,53]
[377137528,1754261432147,-1297.26546833,0.00046279,54]
[377137529,1754261432157,-1297.26546833,0.00046624,54]
[377137530,1754261432166,-1297.26546833,0.00046969,55]
[377137531,1754261432176,-1297.26546833,0.00047314,56]
[377137532,1754261432185,-1297.26546833,0.00047659,56]
[377137533,1754261432194,-1297.26546833,0.00048003,57]
[377137534,1754261432204,-1297.26546833,0.00048348,58]
[377137535,1754261432214,-1297.26546833,0.00048693,58]
[377137536,1754261432224,-1297.26546833,0.00049038,59]
[377137537,1754261432234,-1297.26546833,0.00049383,60]
[377137538,1754261432243,-3733.78898565,0.000495,120]
[377137539,1754261432341,-151.52062609,0.000497,2]
[377137540,1754261432352,-151.6526071,0.000497,2]
[377137541,1754261432363,-151.27172784,0.000497,2]
[377137542,1754261432372,-151.0,0.000497,2]
[377137543,1754261432381,-151.0,0.000497,2]
[377137544,1754261432391,-151.0,0.000497,2]
[377137545,1754261432400,-240.60874891,0.000497,2]
[377137546,1754261432410,-151.0,0.000497,2]
[377137547,1754261432419,-151.0,0.000497,2]
[377137548,1754261432429,-151.0,0.000497,2]
[377137549,1754261432438,-151.0,0.000497,2]
[377137550,1754261432448,-151.0,0.000497,2]
[377137551,1754261432460,-255.98645579,0.000497,2]
[377137552,1754261432470,-151.0,0.000497,2]
[377137553,1754261432480,-151.0,0.000497,2]
[377137554,1754261432490,-156.50300657,0.000497,2]
[377137555,1754261432500,-292.96235687,0.00049714,2]
[377137556,1754261432509,-959.10934732,0.00049728,60]
[377137613,1754261438162,-255.605,0.00045311,2]
[377137616,1754261438172,-338.15612101,0.00049728,60]
[377137619,1754261438182,-151.0,0.00049824,120]
[377137622,1754261438192,-521.0,0.00049833,120]
[377137624,1754261438201,-1000.0,0.0005,120]
[377137627,1754261438211,-151.0,0.0005,120]
[377137629,1754261438220,-211.39218563,0.00050033,7]
[377137632,1754261438230,-500.0,0.00050033,10]
[377137635,1754261438239,-1297.26546833,0.00050072,61]
[377137638,1754261438249,-794.08448247,0.0005011,28]
[377137641,1754261438259,-292.96235684,0.00050179,2]
[377137644,1754261438269,-151.0,0.00050199,120]
[377137645,1754261438278,-4006.82188481,0.000502,120]
[377137646,1754261438290,-1993.17811519,0.000502,120]
[377137647,1754261438299,-521.0,0.00050294,120]
[377137648,1754261438309,-324.24835464,0.00050417,62]
[377137649,1754261438321,-973.01711369,0.00050417,62]
[377137650,1754261438330,-1000.0,0.000505,120]
[377137651,1754261438339,-292.96235684,0.00050644,2]
[377137652,1754261438348,-521.0,0.00050756,120]
[377137653,1754261438358,-1297.26546833,0.00050762,62]
[377137654,1754261438367,-500.0,0.00050883,2]
[377137655,1754261438376,-500.0,0.00050883,120]
[377137656,1754261438385,-255.65311319,0.00050883,2]
[377137657,1754261438395,-513.51192927,0.00050883,120]
[377137658,1754261438404,-500.0,0.00050883,2]
[377137659,1754261438415,-159.582499,0.00050883,2]
[377137660,1754261438424,-500.0,0.00050883,120]
[377137661,1754261438433,-151.0,0.00050884,120]
[377137662,1754261438442,-151.0,0.00050884,120]
[377137663,1754261438451,-151.0,0.00050884,120]
[377137664,1754261438460,-151.0,0.00050884,120]
[377137665,1754261438470,-151.0,0.00050884,120]
[377137666,1754261438479,-151.0,0.00050884,120]
[377137668,1754261438489,-151.0,0.00050884,120]
[377137670,1754261438498,-500.0,0.0005095,10]
[377137672,1754261438507,-1430.02019968,0.0005099,2]
[377137675,1754261438519,-6434.0150118,0.0005099,2]
[377137677,1754261438528,-7372.02374634,0.00051,120]
[377137679,1754261438538,-1000.0,0.00051,120]
[377137681,1754261438547,-1237.82840985,0.00051,120]
[377137683,1754261438557,-151.0,0.00051,120]
[377137685,1754261438566,-151.0,0.00051,120]
[377137687,1754261438575,-1297.26546833,0.00051107,63]
[377137689,1754261438585,-292.96235684,0.00051108,2]
[377137691,1754261438594,-794.0844824,0.00051151,28]
[377137693,1754261438603,-151.0,0.00051158,120]
[377137696,1754261438623,-151.0,0.00051158,120]
[377137698,1754261438635,-151.0,0.00051158,120]
[377137700,1754261438645,-151.0,0.00051158,120]
[377137703,1754261438657,-344.79,0.000512,14]
[377137705,1754261438667,-521.0,0.00051218,120]
[377137707,1754261438677,-151.0,0.00051432,120]
[377137709,1754261438687,-151.0,0.00051432,120]
[377137711,1754261438697,-151.0,0.00051432,120]
[377137713,1754261438706,-1297.26546833,0.00051452,64]
[377137715,1754261438717,-500.0,0.00051498,10]
[377137717,1754261438732,-1000.0,0.000515,120]
[377137719,1754261438742,-36455.15587693,0.00051533,2]
[377137721,1754261438752,-22142.3246953,0.00051543,4]
[377137723,1754261438763,-19157.2609817,0.00051543,120]
[377137725,1754261438772,-11185.73,0.00051552,120]
[377137727,1754261438782,-151.0,0.00051562,120]
[377137729,1754261438792,-151.0,0.00051563,120]
[377137731,1754261438803,-151.0,0.00051572,120]
[377137733,1754261438813,-241.260202,0.00051573,120]
[377137735,1754261438823,-151.0,0.00051573,120]
[377137737,1754261438833,-292.96235684,0.00051573,2]
[377137739,1754261438842,-182.87869568,0.00051612,2]
[377137741,1754261438852,-257.29991662,0.00051612,2]
[377137744,1754261438862,-151.0,0.00051612,2]
[377137746,1754261438872,-151.0,0.00051612,2]
[377137748,1754261438881,-151.0,0.00051612,2]
[377137750,1754261438891,-151.0,0.00051612,2]
[377137752,1754261438900,-151.0,0.00051612,2]
[377137754,1754261438910,-151.0,0.00051612,2]
[377137756,1754261438920,-151.0,0.00051612,2]
[377137758,1754261438930,-151.0,0.00051612,2]
[377137760,1754261438940,-151.0,0.00051612,2]
[377137762,1754261438949,-151.0,0.00051612,2]
[377137764,1754261438959,-151.0,0.00051612,2]
[377137766,1754261438969,-151.0,0.00051612,2]
[377137768,1754261438979,-151.0,0.00051612,2]
[377137770,1754261438989,-22142.3246953,0.00051623,4]
[377137772,1754261438999,-357.23116157,0.00051632,120]
[377137774,1754261439008,-151.0,0.00051633,120]
[377137776,1754261439018,-55421.43938443,0.00051633,4]
[377137778,1754261439031,-393.58354711,0.00051633,4]
[377137781,1754261439043,-655.23188363,0.00051633,4]
[377137794,1754261439157,-25299.49824153,0.00051633,4]
[377137796,1754261439170,-1600.0,0.00051633,4]
[377137798,1754261439183,-1043.16872469,0.00051633,4]
[377137812,1754261439306,-783.8139614,0.00051633,4]
[377137816,1754261439323,-730.9799992,0.00051633,4]
[377137818,1754261439335,-743.65069221,0.00051633,4]
[377138086,1754261442031,-0.02397793,0.00051633,4]